[Event "36th European Club Cup 2021"]
[Site "Struga"]
[Date "2021.09.24"]
[Round "7.34"]
[White "Lomasov, Semyon"]
[Black "Tadic, Stefan"]
[Result "1-0"]
[ECO "B35"]
[WhiteElo "2526"]
[BlackElo "2339"]
[Annotator "ChessBase"]
[PlyCount "65"]
[EventDate "2021.09.18"]
[EventType "team-tourn"]
[EventCountry "MKD"]
[SourceTitle "playchess.com"]
[Source "ChessBase"]
[SourceQuality "1"]
[TimeControl "40/5400+30:1800+30"]

1. e4 {[%emt 0:00:02]} c5 {[%emt 0:00:13]} 2. Nf3 {[%emt 0:00:06]} g6 {[%emt 0:
00:22]} 3. d4 {[%emt 0:00:20]} cxd4 {[%emt 0:00:07]} 4. Nxd4 {[%emt 0:00:03]}
Nc6 {[%emt 0:00:18]} 5. Nc3 {[%emt 0:00:04]} Bg7 {[%emt 0:00:08]} 6. Be3 {
[%emt 0:00:16]} Nf6 {[%emt 0:00:16]} 7. Bc4 {[%emt 0:00:11]} O-O {[%emt 0:00:
56]} 8. Bb3 {[%emt 0:00:04]} d5 {[%emt 0:01:43]} 9. exd5 {[%emt 0:02:23]} Na5 {
[%emt 0:00:14]} 10. Qf3 {[%emt 0:00:36]} Nxb3 {[%emt 0:00:21]} 11. axb3 {
[%emt 0:00:17]} Bg4 {[%emt 0:00:05]} 12. Qg3 {[%emt 0:00:08]} Bh5 {[%emt 0:00:
06]} 13. d6 {[%emt 0:00:49]} Ng4 {[%emt 0:00:31]} 14. h3 {[%emt 0:00:38]} Nxe3
{[%emt 0:09:34]} 15. fxe3 {[%emt 0:02:39]} exd6 {[%emt 0:12:03]} 16. O-O {
[%emt 0:03:39]} Qe7 {[%emt 0:30:51]} 17. Nd5 {[%emt 0:07:38]} Qe5 {[%emt 0:00:
50]} 18. Nf4 {[%emt 0:00:19]} Rae8 {[%emt 0:13:47]} 19. Rae1 {[%emt 0:01:56]}
f5 {[%emt 0:12:45]} 20. c3 {[%emt 0:04:02]} Qe4 {[%emt 0:07:11]} 21. Nxh5 {
[%emt 0:18:03]} gxh5 {[%emt 0:00:01]} 22. Rf4 {[%emt 0:00:16]} Qd3 {[%emt 0:02:
02]} 23. Rf3 {[%emt 0:12:25]} Qd2 {[%emt 0:01:06]} 24. Nxf5 {[%emt 0:01:08]}
Rxf5 {[%emt 0:00:15]} 25. Rxf5 {[%emt 0:00:02]} Qxb2 {[%emt 0:00:54]} 26. Qxd6
{[%emt 0:08:46]} Qxb3 {[%emt 0:02:07]} 27. Qd7 {[%emt 0:00:39]} Qe6 {[%emt 0:
00:56]} 28. Qxe6+ {[%emt 0:00:16]} Rxe6 {[%emt 0:00:07]} 29. Rd1 {[%emt 0:00:
02]} Bxc3 {[%emt 0:01:12]} 30. Rd7 {[%emt 0:00:09]} Rxe3 {[%emt 0:02:46]} 31.
Rc5 {[%emt 0:00:31]} Re1+ {[%emt 0:01:12]} 32. Kf2 {[%emt 0:00:07]} Re7 {
[%emt 0:00:11]} 33. Rc8+ {[%emt 0:00:08]} 1-0

[Event "36th European Club Cup 2021"]
[Site "Struga"]
[Date "2021.09.24"]
[Round "7.35"]
[White "Gotovusa, Goran"]
[Black "Arngrimsson, Dagur"]
[Result "0-1"]
[ECO "D04"]
[WhiteElo "2161"]
[BlackElo "2383"]
[Annotator "NA"]
[PlyCount "68"]
[EventDate "2021.09.18"]
[EventType "team-tourn"]
[EventCountry "MKD"]
[SourceTitle "playchess.com"]
[Source "ChessBase"]
[SourceQuality "1"]
[TimeControl "40/5400+30:1800+30"]

1. d4 {[%emt 0:00:04]} d5 {[%emt 0:00:05]} 2. e3 {[%emt 0:00:06]} Nf6 {[%emt 0:
00:15]} 3. Bd3 {[%emt 0:00:06]} g6 {[%emt 0:02:16]} 4. Nf3 {[%emt 0:00:25]} Bg7
{[%emt 0:01:31]} 5. b4 {[%emt 0:00:53]} a5 {[%emt 0:02:06]} 6. b5 {[%emt 0:00:
54]} Nbd7 {[%emt 0:01:01]} 7. O-O {[%emt 0:00:46]} c5 {[%emt 0:00:30]} 8. bxc6
{[%emt 0:00:29]} bxc6 {[%emt 0:00:11]} 9. Nbd2 {[%emt 0:08:54]} O-O {[%emt 0:
04:52]} 10. h3 {[%emt 0:15:12]} Qc7 {[%emt 0:05:03]} 11. Ba3 {[%emt 0:05:47]}
c5 {[%emt 0:04:10]} 12. c4 {[%emt 0:00:56]} Ba6 {[%emt 0:06:53]} 13. Rc1 {
[%emt 0:10:31]} Qa7 {[%emt 0:06:39]} 14. Nb3 {[%emt 0:07:43]} cxd4 {[%emt 0:01:
59]} 15. Nbxd4 {[%emt 0:06:30]} Rfc8 {[%emt 0:05:47]} 16. cxd5 {[%emt 0:06:44]}
Rxc1 {[%emt 0:01:23]} 17. Bxc1 {[%emt 0:00:07]} Nxd5 {[%emt 0:02:23]} 18. Bxa6
{[%emt 0:12:30]} Qxa6 {[%emt 0:00:10]} 19. Nf5 {[%emt 0:03:41]} N7f6 {[%emt 0:
04:15]} 20. Nxg7 {[%emt 0:02:16]} Nc3 {[%emt 0:01:07]} 21. Qb3 {[%emt 0:02:50]}
Ne2+ {[%emt 0:00:13]} 22. Kh2 {[%emt 0:01:35]} Nxc1 {[%emt 0:09:17]} 23. Rxc1 {
[%emt 0:00:28]} Qd6+ {[%emt 0:01:23]} 24. g3 {[%emt 0:03:33]} Kxg7 {[%emt 0:00:
13]} 25. e4 {[%emt 0:05:14]} Rb8 {[%emt 0:06:05]} 26. Qe3 {[%emt 0:03:32]} Qe6
{[%emt 0:06:14]} 27. Qf4 {[%emt 0:01:07]} Rb4 {[%emt 0:01:19]} 28. Ng5 {
[%emt 0:00:55]} Qxa2 {[%emt 0:00:11]} 29. Rc7 {[%emt 0:00:40]} h6 {[%emt 0:00:
51]} 30. h4 {[%emt 0:00:28]} hxg5 {[%emt 0:02:00]} 31. hxg5 {[%emt 0:00:16]}
Nxe4 {[%emt 0:01:43]} 32. Rxe7 {[%emt 0:00:44]} Qxf2+ {[%emt 0:00:16]} 33. Kh3
{[%emt 0:00:33]} Nxg5+ {[%emt 0:00:59]} 34. Qxg5 {[%emt 0:00:16]} Qf1+ {
[%emt 0:00:07]} 0-1

[Event "36th European Club Cup 2021"]
[Site "Struga"]
[Date "2021.09.24"]
[Round "7.36"]
[White "Lagerman, Robert"]
[Black "Gjorgjieski, Dejan"]
[Result "1/2-1/2"]
[ECO "B08"]
[WhiteElo "2300"]
[BlackElo "2125"]
[Annotator "NA"]
[PlyCount "84"]
[EventDate "2021.09.18"]
[EventType "team-tourn"]
[EventCountry "MKD"]
[SourceTitle "playchess.com"]
[Source "ChessBase"]
[SourceQuality "1"]
[TimeControl "40/5400+30:1800+30"]

1. e4 {[%emt 0:00:03]} g6 {[%emt 0:00:13]} 2. d4 {[%emt 0:00:06]} Bg7 {[%emt 0:
00:02]} 3. Nc3 {[%emt 0:00:24]} d6 {[%emt 0:04:49]} 4. Be2 {[%emt 0:00:47]} Nd7
{[%emt 0:02:44]} 5. Nf3 {[%emt 0:06:36]} c6 {[%emt 0:03:58]} 6. O-O {[%emt 0:
01:06]} Qc7 {[%emt 0:00:58]} 7. a4 {[%emt 0:00:35]} Ngf6 {[%emt 0:10:19]} 8. h3
{[%emt 0:02:17]} O-O {[%emt 0:01:25]} 9. Be3 {[%emt 0:00:13]} e5 {[%emt 0:18:
42]} 10. Qd2 {[%emt 0:04:59]} Re8 {[%emt 0:17:41]} 11. dxe5 {[%emt 0:04:27]}
dxe5 {[%emt 0:07:58]} 12. Rfd1 {[%emt 0:06:27]} Bf8 {[%emt 0:00:32]} 13. Bc4 {
[%emt 0:16:41]} Nb6 {[%emt 0:06:59]} 14. Bd3 {[%emt 0:06:18]} a5 {[%emt 0:04:
28]} 15. Ne2 {[%emt 0:03:30]} Nfd7 {[%emt 0:03:38]} 16. Ng3 {[%emt 0:09:43]}
Nc5 {[%emt 0:04:56]} 17. Bf1 {[%emt 0:03:36]} Ncxa4 {[%emt 0:04:37]} 18. Rdb1 {
[%emt 0:03:00]} Nc5 {[%emt 0:02:49]} 19. Qc3 {[%emt 0:11:14]} Nba4 {[%emt 0:00:
50]} 20. Qe1 {[%emt 0:00:53]} b5 {[%emt 0:00:41]} 21. b3 {[%emt 0:01:37]} Nb6 {
[%emt 0:00:05]} 22. Rxa5 {[%emt 0:00:39]} Rxa5 {[%emt 0:01:42]} 23. Qxa5 {
[%emt 0:00:02]} Nd5 {[%emt 0:00:16]} 24. Qxc7 {[%emt 0:04:11]} Nxc7 {[%emt 0:
00:05]} 25. Ra1 {[%emt 0:01:16]} N7a6 {[%emt 0:00:14]} 26. Ne1 {[%emt 0:02:19]}
h5 {[%emt 0:01:00]} 27. f3 {[%emt 0:00:39]} Be7 {[%emt 0:00:59]} 28. Ne2 {
[%emt 0:03:16]} Rd8 {[%emt 0:00:19]} 29. Bf2 {[%emt 0:02:22]} Kf8 {[%emt 0:00:
24]} 30. Nc1 {[%emt 0:00:28]} f5 {[%emt 0:00:30]} 31. exf5 {[%emt 0:00:48]}
Bxf5 {[%emt 0:00:44]} 32. Ncd3 {[%emt 0:00:29]} e4 {[%emt 0:00:15]} 33. fxe4 {
[%emt 0:00:18]} Bxe4 {[%emt 0:00:04]} 34. g3 {[%emt 0:01:51]} g5 {[%emt 0:00:
49]} 35. Bg2 {[%emt 0:01:09]} Bxg2 {[%emt 0:02:15]} 36. Kxg2 {[%emt 0:00:26]}
Nxd3 {[%emt 0:00:00]} 37. Nxd3 {[%emt 0:00:34]} Nb4 {[%emt 0:00:00]} 38. Nxb4 {
[%emt 0:00:42]} Bxb4 {[%emt 0:00:00]} 39. Be3 {[%emt 0:00:12]} Rd5 {[%emt 0:00:
30]} 40. g4 {[%emt 0:00:00]} hxg4 {[%emt 0:00:00]} 41. hxg4 {[%emt 0:03:39]}
Bc5 {[%emt 0:08:53]} 42. Ra8+ {[%emt 0:12:52]} Kf7 {[%emt 0:02:57]} 1/2-1/2

[Event "36th European Club Cup 2021"]
[Site "Struga"]
[Date "2021.09.24"]
[Round "7.37"]
[White "Llobell Cortell, Enrique"]
[Black "Heimann, Andreas"]
[Result "1/2-1/2"]
[ECO "C27"]
[WhiteElo "2392"]
[BlackElo "2587"]
[Annotator "ChessBase"]
[PlyCount "180"]
[EventDate "2021.09.18"]
[EventType "team-tourn"]
[EventCountry "MKD"]
[SourceTitle "playchess.com"]
[Source "ChessBase"]
[SourceQuality "1"]
[TimeControl "40/5400+30:1800+30"]

1. e4 {[%emt 0:00:08]} e5 {[%emt 0:00:11]} 2. Nc3 {[%emt 0:00:04]} Nf6 {
[%emt 0:00:05]} 3. Bc4 {[%emt 0:00:16]} Nxe4 {[%emt 0:01:03]} 4. Qh5 {[%emt 0:
00:37]} Nd6 {[%emt 0:00:02]} 5. Qxe5+ {[%emt 0:00:19]} Qe7 {[%emt 0:00:28]} 6.
Qxe7+ {[%emt 0:00:10]} Bxe7 {[%emt 0:00:05]} 7. Bb3 {[%emt 0:00:21]} Nf5 {
[%emt 0:01:39]} 8. Nf3 {[%emt 0:02:50]} c6 {[%emt 0:01:02]} 9. d4 {[%emt 0:01:
03]} d5 {[%emt 0:00:46]} 10. Ne2 {[%emt 0:01:08]} O-O {[%emt 0:03:27]} 11. O-O
{[%emt 0:02:49]} Re8 {[%emt 0:13:02]} 12. Re1 {[%emt 0:09:30]} Nh4 {[%emt 0:00:
48]} 13. Nxh4 {[%emt 0:04:21]} Bxh4 {[%emt 0:00:14]} 14. Bf4 {[%emt 0:00:47]}
Bg4 {[%emt 0:08:52]} 15. Ng3 {[%emt 0:08:36]} Nd7 {[%emt 0:00:05]} 16. Kf1 {
[%emt 0:06:18]} g6 {[%emt 0:14:57]} 17. Rxe8+ {[%emt 0:02:57]} Rxe8 {[%emt 0:
00:15]} 18. Re1 {[%emt 0:00:27]} Rxe1+ {[%emt 0:02:57]} 19. Kxe1 {[%emt 0:00:
13]} Bd8 {[%emt 0:00:02]} 20. c3 {[%emt 0:15:10]} h5 {[%emt 0:01:36]} 21. f3 {
[%emt 0:12:47]} Be6 {[%emt 0:00:20]} 22. Bc2 {[%emt 0:00:32]} Kg7 {[%emt 0:05:
37]} 23. Bd6 {[%emt 0:09:00]} Kf6 {[%emt 0:02:19]} 24. Ne2 {[%emt 0:07:47]} Bf5
{[%emt 0:01:37]} 25. Bxf5 {[%emt 0:00:07]} Kxf5 {[%emt 0:00:05]} 26. h3 {
[%emt 0:00:31]} h4 {[%emt 0:00:41]} 27. Nc1 {[%emt 0:01:24]} Ke6 {[%emt 0:08:
08]} 28. Bf4 {[%emt 0:00:51]} g5 {[%emt 0:00:24]} 29. Bh2 {[%emt 0:00:10]} f5 {
[%emt 0:05:51]} 30. Nd3 {[%emt 0:00:05]} f4 {[%emt 0:00:04]} 31. Bg1 {[%emt 0:
03:06]} b6 {[%emt 0:01:21]} 32. Kd2 {[%emt 0:01:00]} Be7 {[%emt 0:00:34]} 33.
Bf2 {[%emt 0:04:39]} Bd6 {[%emt 0:02:22]} 34. Kc2 {[%emt 0:01:21]} Nf8 {
[%emt 0:01:00]} 35. Kd2 {[%emt 0:00:53]} Ng6 {[%emt 0:01:21]} 36. Ke2 {[%emt 0:
00:18]} Ne7 {[%emt 0:00:04]} 37. Kd1 {[%emt 0:00:33]} Nf5 {[%emt 0:00:12]} 38.
Kd2 {[%emt 0:00:21]} Kd7 {[%emt 0:01:23]} 39. Ke2 {[%emt 0:04:12]} Kc7 {
[%emt 0:00:14]} 40. Kd2 {[%emt 0:00:00]} Kb7 {[%emt 0:00:00]} 41. a4 {[%emt 0:
21:15]} Ng7 {[%emt 0:04:25]} 42. Kc2 {[%emt 0:03:01]} Ne6 {[%emt 0:00:17]} 43.
b4 {[%emt 0:00:16]} Kc7 {[%emt 0:01:17]} 44. Bg1 {[%emt 0:00:23]} Ng7 {[%emt 0:
00:15]} 45. Bf2 {[%emt 0:00:10]} Nf5 {[%emt 0:00:05]} 46. Kd2 {[%emt 0:00:16]}
Bf8 {[%emt 0:03:00]} 47. Bg1 {[%emt 0:00:33]} Bg7 {[%emt 0:01:01]} 48. Bf2 {
[%emt 0:00:51]} Nd6 {[%emt 0:00:05]} 49. Nb2 {[%emt 0:01:44]} Nb7 {[%emt 0:00:
47]} 50. Kd3 {[%emt 0:02:32]} Bf8 {[%emt 0:00:35]} 51. Be1 {[%emt 0:02:39]} Bg7
{[%emt 0:01:53]} 52. Bf2 {[%emt 0:00:15]} a5 {[%emt 0:09:43]} 53. bxa5 {
[%emt 0:00:36]} Nxa5 {[%emt 0:00:56]} 54. c4 {[%emt 0:00:03]} Nb7 {[%emt 0:08:
07]} 55. cxd5 {[%emt 0:00:11]} cxd5 {[%emt 0:00:04]} 56. Be1 {[%emt 0:01:10]}
Nd6 {[%emt 0:00:40]} 57. Bf2 {[%emt 0:04:42]} Nf5 {[%emt 0:30:37]} 58. Nd1 {
[%emt 0:00:10]} Kc6 {[%emt 0:00:00]} 59. Nb2 {[%emt 0:00:59]} Bf8 {[%emt 0:00:
00]} 60. Kc3 {[%emt 0:00:27]} Kb7 {[%emt 0:00:00]} 61. Nd3 {[%emt 0:00:35]} Ka6
{[%emt 0:00:00]} 62. Ne5 {[%emt 0:00:29]} Be7 {[%emt 0:00:00]} 63. Nc6 {
[%emt 0:00:28]} Bd6 {[%emt 0:00:00]} 64. Kd3 {[%emt 0:00:32]} Bf8 {[%emt 0:00:
00]} 65. Kc3 {[%emt 0:00:24]} Ba3 {[%emt 0:00:00]} 66. Kd3 {[%emt 0:00:35]} Bd6
{[%emt 0:00:00]} 67. Kc3 {[%emt 0:00:12]} Ng7 {[%emt 0:00:00]} 68. Nd8 {
[%emt 0:00:45]} b5 {[%emt 0:00:00]} 69. axb5+ {[%emt 0:00:06]} Kxb5 {[%emt 0:
00:00]} 70. Nf7 {[%emt 0:00:28]} Bb4+ {[%emt 0:00:00]} 71. Kd3 {[%emt 0:00:14]}
Ne6 {[%emt 0:00:00]} 72. Ne5 {[%emt 0:00:54]} Ba5 {[%emt 0:00:00]} 73. Nd7 {
[%emt 0:00:29]} Bb4 {[%emt 0:00:00]} 74. Ne5 {[%emt 0:00:27]} Nd8 {[%emt 0:00:
00]} 75. Nd7 {[%emt 0:01:28]} Nf7 {[%emt 0:00:00]} 76. Nf6 {[%emt 0:00:00]} Kc6
{[%emt 0:00:00]} 77. Ng4 {[%emt 0:00:00]} Kd6 {[%emt 0:00:00]} 78. Bg1 {
[%emt 0:00:51]} Ke6 {[%emt 0:00:00]} 79. Bf2 {[%emt 0:00:10]} Ba5 {[%emt 0:00:
20]} 80. Bg1 {[%emt 0:00:50]} Nd6 {[%emt 0:00:13]} 81. Ne5 {[%emt 0:00:12]} Be1
{[%emt 0:00:28]} 82. Ke2 {[%emt 0:00:14]} Bg3 {[%emt 0:00:37]} 83. Kd3 {
[%emt 0:00:10]} Nf7 {[%emt 0:04:08]} 84. Ng4 {[%emt 0:00:16]} Nd6 {[%emt 0:01:
38]} 85. Ne5 {[%emt 0:00:04]} Kf5 {[%emt 0:00:03]} 86. Kc3 {[%emt 0:00:19]}
Be1+ {[%emt 0:00:32]} 87. Kd3 {[%emt 0:00:06]} Kf6 {[%emt 0:00:06]} 88. Ke2 {
[%emt 0:00:05]} Bg3 {[%emt 0:00:05]} 89. Kd3 {[%emt 0:00:03]} Ke6 {[%emt 0:00:
03]} 90. Kc3 {[%emt 0:00:06]} Be1+ {[%emt 0:01:28]} 1/2-1/2

[Event "36th European Club Cup 2021"]
[Site "Struga"]
[Date "2021.09.24"]
[Round "7.39"]
[White "Pallardo Lozoya, Jose Vicente"]
[Black "Breder, Dennis"]
[Result "1/2-1/2"]
[ECO "B26"]
[WhiteElo "2357"]
[BlackElo "2463"]
[Annotator "ChessBase"]
[PlyCount "93"]
[EventDate "2021.09.18"]
[EventType "team-tourn"]
[EventCountry "MKD"]
[SourceTitle "playchess.com"]
[Source "ChessBase"]
[SourceQuality "1"]
[TimeControl "40/5400+30:1800+30"]

1. e4 {[%emt 0:00:02]} c5 {[%emt 0:01:33]} 2. Nc3 {[%emt 0:00:08]} g6 {[%emt 0:
00:03]} 3. g3 {[%emt 0:00:10]} Bg7 {[%emt 0:00:04]} 4. Bg2 {[%emt 0:00:07]} Nc6
{[%emt 0:00:07]} 5. d3 {[%emt 0:00:11]} d6 {[%emt 0:00:40]} 6. Be3 {[%emt 0:00:
45]} e5 {[%emt 0:00:11]} 7. Qd2 {[%emt 0:02:11]} Nge7 {[%emt 0:00:17]} 8. Bh6 {
[%emt 0:02:01]} Bxh6 {[%emt 0:00:06]} 9. Qxh6 {[%emt 0:00:05]} Nd4 {[%emt 0:00:
02]} 10. Qd2 {[%emt 0:00:15]} h5 {[%emt 0:00:06]} 11. Nce2 {[%emt 0:03:46]} h4
{[%emt 0:06:00]} 12. c3 {[%emt 0:03:40]} Nxe2 {[%emt 0:20:53]} 13. Nxe2 {
[%emt 0:04:22]} Be6 {[%emt 0:02:20]} 14. d4 {[%emt 0:19:41]} Qd7 {[%emt 0:08:
58]} 15. Ng1 {[%emt 0:10:07]} cxd4 {[%emt 0:30:07]} 16. cxd4 {[%emt 0:00:42]}
Qa4 {[%emt 0:00:40]} 17. d5 {[%emt 0:06:03]} Bg4 {[%emt 0:09:32]} 18. f3 {
[%emt 0:03:01]} Bd7 {[%emt 0:01:10]} 19. Ne2 {[%emt 0:00:37]} Rc8 {[%emt 0:01:
31]} 20. Nc3 {[%emt 0:06:25]} Qc4 {[%emt 0:02:11]} 21. Nd1 {[%emt 0:18:56]} f6
{[%emt 0:01:46]} 22. Ne3 {[%emt 0:00:46]} Qd4 {[%emt 0:00:41]} 23. Rd1 {
[%emt 0:00:37]} Qb6 {[%emt 0:02:27]} 24. f4 {[%emt 0:03:39]} Kf7 {[%emt 0:01:
12]} 25. O-O {[%emt 0:01:59]} Kg7 {[%emt 0:00:06]} 26. Rf2 {[%emt 0:02:33]}
hxg3 {[%emt 0:05:38]} 27. hxg3 {[%emt 0:00:06]} exf4 {[%emt 0:00:14]} 28. gxf4
{[%emt 0:00:44]} Rh4 {[%emt 0:00:25]} 29. Qd4 {[%emt 0:02:56]} Qxd4 {[%emt 0:
00:26]} 30. Rxd4 {[%emt 0:00:02]} b5 {[%emt 0:00:49]} 31. Rd1 {[%emt 0:03:51]}
Ng8 {[%emt 0:02:16]} 32. Nc2 {[%emt 0:01:29]} Nh6 {[%emt 0:00:42]} 33. Nd4 {
[%emt 0:00:16]} Ng4 {[%emt 0:00:41]} 34. Re2 {[%emt 0:00:28]} Kf7 {[%emt 0:00:
19]} 35. Nf3 {[%emt 0:00:44]} Rh5 {[%emt 0:00:18]} 36. Rf1 {[%emt 0:00:56]} b4
{[%emt 0:00:19]} 37. Rfe1 {[%emt 0:00:12]} Bb5 {[%emt 0:01:14]} 38. Rd2 {
[%emt 0:00:08]} Bd7 {[%emt 0:00:26]} 39. Rde2 {[%emt 0:01:08]} a5 {[%emt 0:01:
08]} 40. Rd2 {[%emt 0:00:00]} Rc5 {[%emt 0:00:00]} 41. Bf1 {[%emt 0:05:44]} Ke7
{[%emt 0:15:17]} 42. Kg2 {[%emt 0:02:25]} Rc8 {[%emt 0:00:44]} 43. Kg1 {
[%emt 0:10:46]} Rh7 {[%emt 0:06:48]} 44. Bg2 {[%emt 0:02:21]} Rh5 {[%emt 0:01:
49]} 45. Bf1 {[%emt 0:02:20]} g5 {[%emt 0:10:44]} 46. fxg5 {[%emt 0:14:05]}
fxg5 {[%emt 0:00:30]} 47. Kg2 {[%emt 0:00:30]} 1/2-1/2

[Event "36th European Club Cup 2021"]
[Site "Struga"]
[Date "2021.09.24"]
[Round "7.40"]
[White "Brunner, Nicolas"]
[Black "Ibanez Aullana, Ramon"]
[Result "1/2-1/2"]
[ECO "D37"]
[WhiteElo "2425"]
[BlackElo "2269"]
[Annotator "NA"]
[PlyCount "79"]
[EventDate "2021.09.18"]
[EventType "team-tourn"]
[EventCountry "MKD"]
[SourceTitle "playchess.com"]
[Source "ChessBase"]
[SourceQuality "1"]
[TimeControl "40/5400+30:1800+30"]

1. d4 {[%emt 0:00:03]} Nf6 {[%emt 0:00:08]} 2. c4 {[%emt 0:00:04]} e6 {[%emt 0:
00:11]} 3. Nf3 {[%emt 0:00:21]} d5 {[%emt 0:01:50]} 4. Nc3 {[%emt 0:00:18]} Be7
{[%emt 0:01:06]} 5. Bf4 {[%emt 0:00:15]} O-O {[%emt 0:00:49]} 6. e3 {[%emt 0:
00:06]} Nbd7 {[%emt 0:06:15]} 7. c5 {[%emt 0:01:02]} Nh5 {[%emt 0:03:29]} 8.
Bd3 {[%emt 0:03:18]} Re8 {[%emt 0:08:48]} 9. O-O {[%emt 0:02:00]} c6 {[%emt 0:
06:07]} 10. b4 {[%emt 0:02:41]} g6 {[%emt 0:08:27]} 11. Qd2 {[%emt 0:22:57]} g5
{[%emt 0:17:39]} 12. Bg3 {[%emt 0:05:15]} f5 {[%emt 0:02:22]} 13. Ne5 {[%emt 0:
04:37]} Nxg3 {[%emt 0:03:08]} 14. hxg3 {[%emt 0:00:10]} Nxe5 {[%emt 0:00:24]}
15. dxe5 {[%emt 0:00:05]} b6 {[%emt 0:06:02]} 16. Na4 {[%emt 0:02:33]} Bf8 {
[%emt 0:08:28]} 17. f4 {[%emt 0:04:59]} g4 {[%emt 0:04:35]} 18. Kf2 {[%emt 0:
04:31]} Rb8 {[%emt 0:00:45]} 19. Qc3 {[%emt 0:07:42]} Bd7 {[%emt 0:02:33]} 20.
a3 {[%emt 0:02:43]} Re7 {[%emt 0:01:29]} 21. Qd4 {[%emt 0:03:47]} h5 {[%emt 0:
01:01]} 22. Rh1 {[%emt 0:01:28]} Rh7 {[%emt 0:00:07]} 23. Rab1 {[%emt 0:05:09]}
Be8 {[%emt 0:02:05]} 24. Be2 {[%emt 0:01:37]} b5 {[%emt 0:03:41]} 25. Nc3 {
[%emt 0:00:33]} a5 {[%emt 0:00:30]} 26. Na2 {[%emt 0:03:10]} Ra8 {[%emt 0:03:
04]} 27. Nc1 {[%emt 0:00:34]} a4 {[%emt 0:01:11]} 28. Bd3 {[%emt 0:00:42]} Qe7
{[%emt 0:01:55]} 29. Ne2 {[%emt 0:00:05]} Rc8 {[%emt 0:02:07]} 30. Rh2 {
[%emt 0:01:15]} Qf7 {[%emt 0:01:33]} 31. Rbh1 {[%emt 0:00:25]} Bd7 {[%emt 0:01:
08]} 32. Qa1 {[%emt 0:02:52]} Be7 {[%emt 0:00:57]} 33. Nd4 {[%emt 0:00:39]} Bf8
{[%emt 0:00:29]} 34. Qb1 {[%emt 0:00:53]} Be7 {[%emt 0:00:12]} 35. Qa1 {
[%emt 0:01:49]} Bf8 {[%emt 0:00:10]} 36. Qf1 {[%emt 0:00:07]} Rb8 {[%emt 0:00:
17]} 37. Qa1 {[%emt 0:00:55]} Be7 {[%emt 0:00:20]} 38. Qb1 {[%emt 0:01:53]} Rc8
{[%emt 0:00:17]} 39. Qf1 {[%emt 0:01:23]} Rb8 {[%emt 0:00:08]} 40. Qb1 {
[%emt 0:03:23]} 1/2-1/2

[Event "36th European Club Cup 2021"]
[Site "Struga"]
[Date "2021.09.24"]
[Round "7.41"]
[White "Torres Sanchez, Jose"]
[Black "Haag, Gregor"]
[Result "0-1"]
[ECO "E04"]
[WhiteElo "2271"]
[BlackElo "2370"]
[Annotator "NA"]
[PlyCount "92"]
[EventDate "2021.09.18"]
[EventType "team-tourn"]
[EventCountry "MKD"]
[SourceTitle "playchess.com"]
[Source "ChessBase"]
[SourceQuality "1"]
[TimeControl "40/5400+30:1800+30"]

1. Nf3 {[%emt 0:00:04]} d5 {[%emt 0:00:13]} 2. g3 {[%emt 0:00:22]} c5 {[%emt 0:
00:22]} 3. Bg2 {[%emt 0:00:13]} Nc6 {[%emt 0:00:04]} 4. d4 {[%emt 0:00:24]} Nf6
{[%emt 0:00:19]} 5. O-O {[%emt 0:00:52]} e6 {[%emt 0:00:04]} 6. c4 {[%emt 0:00:
51]} dxc4 {[%emt 0:00:20]} 7. dxc5 {[%emt 0:00:46]} Qxd1 {[%emt 0:00:07]} 8.
Rxd1 {[%emt 0:00:03]} Bxc5 {[%emt 0:00:08]} 9. Nbd2 {[%emt 0:00:12]} c3 {
[%emt 0:00:56]} 10. bxc3 {[%emt 0:00:17]} O-O {[%emt 0:00:31]} 11. Nb3 {
[%emt 0:00:05]} Be7 {[%emt 0:01:21]} 12. c4 {[%emt 0:00:33]} Bd7 {[%emt 0:02:
56]} 13. Bb2 {[%emt 0:00:46]} Rfd8 {[%emt 0:09:10]} 14. c5 {[%emt 0:03:19]} Be8
{[%emt 0:23:51]} 15. Ne1 {[%emt 0:01:10]} Rxd1 {[%emt 0:10:26]} 16. Rxd1 {
[%emt 0:00:14]} a5 {[%emt 0:00:16]} 17. Nd3 {[%emt 0:01:04]} a4 {[%emt 0:07:14]
} 18. Nd4 {[%emt 0:09:30]} Na5 {[%emt 0:17:32]} 19. Bc3 {[%emt 0:04:08]} Nd5 {
[%emt 0:03:12]} 20. Bxd5 {[%emt 0:01:20]} exd5 {[%emt 0:00:10]} 21. Nf5 {
[%emt 0:01:46]} Bf8 {[%emt 0:03:33]} 22. Nd6 {[%emt 0:04:47]} Bc6 {[%emt 0:10:
20]} 23. Nb4 {[%emt 0:13:28]} b6 {[%emt 0:00:52]} 24. Nxc6 {[%emt 0:03:23]}
Nxc6 {[%emt 0:00:03]} 25. Rxd5 {[%emt 0:00:12]} Rd8 {[%emt 0:01:29]} 26. e4 {
[%emt 0:00:14]} bxc5 {[%emt 0:00:58]} 27. e5 {[%emt 0:02:27]} f6 {[%emt 0:01:
06]} 28. f4 {[%emt 0:00:12]} fxe5 {[%emt 0:01:03]} 29. fxe5 {[%emt 0:00:12]}
Nb4 {[%emt 0:03:16]} 30. Rxc5 {[%emt 0:11:14]} Nxa2 {[%emt 0:00:06]} 31. Bd2 {
[%emt 0:00:38]} Rb8 {[%emt 0:01:17]} 32. Rc2 {[%emt 0:01:54]} Nb4 {[%emt 0:01:
08]} 33. Rc7 {[%emt 0:03:27]} Nd3 {[%emt 0:01:01]} 34. Bc3 {[%emt 0:00:12]} Ra8
{[%emt 0:00:36]} 35. e6 {[%emt 0:04:02]} Bxd6 {[%emt 0:01:03]} 36. Rxg7+ {
[%emt 0:00:08]} Kf8 {[%emt 0:00:12]} 37. Rxh7 {[%emt 0:00:52]} Ra7 {[%emt 0:00:
53]} 38. Rxa7 {[%emt 0:04:54]} Bc5+ {[%emt 0:00:05]} 39. Kf1 {[%emt 0:00:08]}
Bxa7 {[%emt 0:00:03]} 40. Bf6 {[%emt 0:00:00]} Nf2 {[%emt 0:00:00]} 41. Ke2 {
[%emt 0:05:21]} Bc5 {[%emt 0:16:19]} 42. h4 {[%emt 0:02:34]} a3 {[%emt 0:13:46]
} 43. h5 {[%emt 0:06:10]} Ne4 {[%emt 0:01:02]} 44. Be5 {[%emt 0:00:14]} Bd6 {
[%emt 0:01:16]} 45. Bd4 {[%emt 0:03:33]} Nc5 {[%emt 0:00:22]} 46. Kd1 {[%emt 0:
00:52]} Nb3 {[%emt 0:00:17]} 0-1